bitfinex/quotes_SOLUSD_20241105
["timestamp","ask_amount","ask_price","bid_price","bid_amount"]
[1730779081135,18.36383669,159.65,159.6,5.90643008]
[1730779081336,18.36383669,159.65,159.59,49.09093669]
[1730779081629,18.36383669,159.65,159.6,5.90680202]
[1730779081848,18.36383669,159.65,159.59,49.09093669]
[1730779082159,18.36383669,159.65,159.6,5.90677999]
[1730779082449,18.36383669,159.65,159.59,49.09093669]
[1730779082645,18.36383669,159.65,159.6,5.90698478]
[1730779082845,18.36383669,159.65,159.59,49.09093669]
[1730779083048,18.36383669,159.65,159.6,5.90695817]
[1730779083239,18.36383669,159.65,159.59,49.09093669]
[1730779083443,18.36383669,159.65,159.6,5.90707632]
[1730779083635,18.36383669,159.65,159.59,49.09093669]
[1730779083834,18.36383669,159.65,159.6,5.90704538]
[1730779084049,18.36383669,159.65,159.59,49.09093669]
[1730779084253,18.36383669,159.65,159.6,12.17263955]
[1730779084432,18.36383669,159.65,159.6,6.2655]
[1730779085755,18.36383669,159.65,159.61,3.69831788]
[1730779086031,18.36383669,159.65,159.6,6.2655]
[1730779086461,18.36383669,159.65,159.61,5.90948765]
[1730779086756,18.36383669,159.65,159.6,6.2655]
[1730779086940,18.36383669,159.65,159.61,5.90916054]
[1730779087140,18.36383669,159.65,159.6,6.2655]
[1730779087339,18.36383669,159.65,159.61,5.90907891]
[1730779087544,18.36383669,159.65,159.6,6.2655]
[1730779087841,18.36383669,159.65,159.61,5.91021754]
[1730779088037,18.36383669,159.65,159.6,6.2655]
[1730779088354,18.36383669,159.65,159.61,5.9102125]
[1730779088556,18.36383669,159.65,159.6,6.2655]
[1730779088753,12.09983669,159.66,159.61,5.910714]
[1730779088957,12.09983669,159.66,159.6,6.2655]
[1730779089149,12.09983669,159.66,159.61,5.91070607]
[1730779089462,12.09983669,159.66,159.6,18.36533669]
[1730779089661,12.09983669,159.66,159.61,5.9107079]
[1730779089841,12.09983669,159.67,159.62,5.90993204]
[1730779090041,12.09983669,159.67,159.61,12.09983669]
[1730779090241,18.36233669,159.68,159.62,18.00903951]
[1730779090541,18.36233669,159.68,159.62,12.09983669]
[1730779090941,18.36233669,159.68,159.62,18.36463669]
[1730779091465,12.09983669,159.67,159.62,18.36463669]
[1730779092039,18.36303669,159.67,159.62,18.36463669]
[1730779095568,12.09983669,159.66,159.61,12.09983669]
[1730779095864,18.36303669,159.67,159.62,18.0047495]
[1730779096065,18.36303669,159.67,159.62,12.09983669]
[1730779096860,18.36303669,159.67,159.62,18.36453669]
[1730779099570,12.09983669,159.68,159.62,18.36453669]
[1730779099768,12.09983669,159.67,159.62,18.36453669]
[1730779100647,12.09983669,159.67,159.62,34.02663669]
[1730779101772,18.36273669,159.67,159.62,34.02663669]
[1730779102672,12.09983669,159.66,159.62,21.9268]
[1730779103167,12.09983669,159.66,159.63,5.89975707]
[1730779103371,18.36273669,159.67,159.62,34.02663669]
[1730779104762,12.09983669,159.68,159.62,34.02663669]
[1730779105573,18.36153669,159.7,159.64,12.09983669]
[1730779105873,6.2617,159.7,159.65,12.09983669]
[1730779106856,6.2617,159.7,159.65,18.36323669]
[1730779107176,18.36153669,159.7,159.65,6.2634]
[1730779107560,18.36153669,159.7,159.65,21.9226]
[1730779107948,6.2617,159.7,159.65,34.02243669]
[1730779108248,0.3096875,159.71,159.66,12.09983669]
[1730779108469,0.3096875,159.71,159.69,12.09983669]
[1730779108675,0.3096875,159.71,159.65,21.9226]
[1730779108855,0.3096875,159.71,159.68,6.2625]
[1730779109881,12.09983669,159.7,159.65,15.6589]
[1730779110785,6.2621,159.69,159.65,15.6589]
[1730779111286,18.36193669,159.69,159.64,16.4633]
[1730779111495,12.09983669,159.68,159.64,16.4633]
[1730779111667,18.36193669,159.69,159.64,16.4633]
[1730779111860,18.36193669,159.69,159.64,28.56313669]
[1730779112788,18.36153669,159.7,159.64,28.56313669]
[1730779112988,12.09983669,159.69,159.64,16.4633]
[1730779113168,12.09983669,159.69,159.63,18.36403669]
[1730779113363,12.09983669,159.68,159.63,18.36403669]
[1730779113766,18.36253669,159.68,159.63,18.36403669]
[1730779114085,18.36253669,159.68,159.63,12.09983669]
[1730779114471,12.09983669,159.65,159.6,28.37083669]
[1730779114678,12.09983669,159.67,159.6,22.5365]
[1730779114882,18.36253669,159.68,159.62,12.09983669]
[1730779115770,18.36253669,159.68,159.62,18.36463669]
[1730779116779,12.09983669,159.67,159.62,18.36463669]
[1730779117283,12.09983669,159.67,159.62,18.18921939]
[1730779118172,18.36293669,159.67,159.62,18.18921939]
[1730779120762,12.09983669,159.68,159.62,18.18921939]
[1730779121982,6.2629,159.67,159.62,18.18921939]
[1730779123191,6.2629,159.67,159.63,12.09983669]
[1730779123992,6.2629,159.67,159.62,12.09983669]
[1730779124193,6.2629,159.67,159.63,12.09983669]
[1730779124585,18.36153669,159.7,159.65,12.09983669]
[1730779125096,18.36153669,159.7,159.64,12.09983669]
[1730779129181,18.36153669,159.7,159.64,18.36383669]
[1730779129998,6.2617,159.7,159.65,12.09983669]
[1730779130873,6.2617,159.7,159.65,18.36313669]
[1730779131396,12.09983669,159.69,159.65,6.2633]
[1730779132599,18.36203669,159.69,159.65,6.2633]
[1730779134089,18.36203669,159.69,159.63,12.09983669]
[1730779134299,12.09983669,159.68,159.62,12.09983669]
[1730779135102,12.09983669,159.68,159.63,12.09983669]
[1730779135276,12.09983669,159.69,159.63,18.36413669]
[1730779136382,6.2625,159.68,159.63,18.36413669]
[1730779142009,6.2625,159.68,159.64,12.09983669]
[1730779143113,6.2621,159.69,159.64,12.09983669]
[1730779143278,18.36193669,159.69,159.63,18.36403669]
[1730779143620,6.2621,159.69,159.64,12.09983669]
[1730779146908,6.2621,159.69,159.64,18.36363669]
[1730779147413,18.36153669,159.7,159.64,34.02383669]
[1730779149719,18.36153669,159.7,159.65,2.2065042]
[1730779150019,18.36153669,159.7,159.65,6.2636]
[1730779151495,18.67082419,159.71,159.65,12.09983669]
[1730779152597,18.67082419,159.71,159.65,18.36333669]
[1730779156410,12.09983669,159.7,159.64,12.09983669]
[1730779157793,18.36163669,159.7,159.65,6.2637]
[1730779161325,18.36163669,159.7,159.63,12.09983669]
[1730779161514,12.09983669,159.69,159.63,12.09983669]
[1730779161714,12.09983669,159.69,159.62,12.09983669]
[1730779162421,18.36223669,159.69,159.63,15.66540183]
[1730779162634,18.36223669,159.69,159.63,27.66472833]
[1730779162802,12.09983669,159.68,159.64,3.66194501]
[1730779163729,18.36223669,159.69,159.64,3.66194501]
[1730779165207,6.2624,159.69,159.64,22.0255817]
[1730779166201,6.2624,159.69,159.65,2.20746632]
[1730779166399,6.2624,159.69,159.64,22.0255817]
[1730779166609,6.2624,159.69,159.65,2.20736952]
[1730779166808,6.2624,159.69,159.64,37.6857817]
[1730779167026,6.2624,159.69,159.65,5.86924314]
[1730779167227,6.2624,159.69,159.64,37.6857817]
[1730779167432,6.2624,159.69,159.65,5.86919977]
[1730779167634,6.2624,159.69,159.64,37.6857817]
[1730779167927,6.2624,159.69,159.65,5.86871372]
[1730779168228,6.2624,159.69,159.64,37.6857817]
[1730779168407,6.2624,159.69,159.65,2.20720147]
[1730779168617,6.2624,159.69,159.64,37.6857817]
[1730779168823,6.2624,159.69,159.65,2.20724831]
[1730779169008,6.2624,159.69,159.64,37.6857817]
[1730779169211,6.2624,159.69,159.65,2.20725765]
[1730779169524,12.40952419,159.71,159.65,28.29973669]
[1730779169709,0.3096875,159.71,159.66,12.09983669]
[1730779170719,0.3096875,159.71,159.67,6.2629]
[1730779171727,12.40952419,159.71,159.67,6.2629]
[1730779172324,0.3096875,159.71,159.67,6.2629]
[1730779173043,0.3096875,159.71,159.67,18.36273669]
[1730779173210,0.3096875,159.71,159.67,6.2629]
[1730779174636,0.3096875,159.71,159.68,12.09983669]
[1730779175622,0.3096875,159.71,159.68,18.36203669]
[1730779180313,0.3096875,159.71,159.7,12.09983669]
[1730779180533,0.3096875,159.71,159.7,28.08283669]
[1730779181335,0.3096875,159.71,159.7,34.34453669]
[1730779182348,0.3096875,159.79,159.7,58.59789069]
[1730779182521,30.56823091,159.81,159.77,12.09983669]
[1730779182837,30.56823091,159.81,159.73,12.09983669]
[1730779182838,12.09983669,159.79,159.73,12.09983669]
[1730779183256,12.09983669,159.79,159.74,12.09983669]
[1730779183439,12.09983669,159.8,159.74,12.09983669]
[1730779183743,12.09983669,159.8,159.75,12.09983669]
[1730779183944,12.09983669,159.79,159.74,12.09983669]
[1730779185029,6.2586,159.78,159.74,12.09983669]
[1730779185740,6.2586,159.78,159.75,12.09983669]
[1730779187151,6.2582,159.79,159.76,12.09983669]
[1730779187361,6.2579,159.8,159.76,12.09983669]
[1730779188259,12.09983669,159.83,159.77,12.09983669]
[1730779188546,12.09983669,159.81,159.76,12.09983669]
[1730779188765,12.09983669,159.8,159.75,12.09983669]
[1730779189262,70.0,159.84,159.79,12.09983669]
[1730779189458,6.428,159.85,159.82,12.09983669]
[1730779189770,6.428,159.85,159.81,12.09983669]
[1730779190049,12.09983669,159.84,159.79,12.09983669]
[1730779190352,12.09983669,159.84,159.76,21.9077]
[1730779190533,12.09983669,159.84,159.78,12.09983669]
[1730779190954,24.78363669,159.85,159.8,12.09983669]
[1730779191132,12.09983669,159.84,159.79,12.09983669]
[1730779191335,12.6838,159.85,159.8,12.09983669]
[1730779191536,24.78363669,159.85,159.77,21.9063]
[1730779191747,24.78363669,159.85,159.79,12.09983669]
[1730779192057,12.09983669,159.84,159.79,12.09983669]
[1730779193234,82.6838,159.85,159.78,12.09983669]
[1730779193235,18.35643669,159.83,159.78,12.09983669]
[1730779193557,18.35643669,159.83,159.76,12.09983669]
[1730779193558,12.09983669,159.82,159.76,12.09983669]
[1730779193856,12.09983669,159.81,159.76,12.09983669]
[1730779194052,12.22532669,159.82,159.76,12.09983669]
[1730779194454,0.12549,159.82,159.77,12.09983669]
[1730779194964,12.22532669,159.82,159.77,12.09983669]
[1730779195343,6.2574,159.81,159.77,12.09983669]
[1730779196760,18.35723669,159.81,159.76,12.09983669]
[1730779199964,6.2574,159.81,159.76,12.09983669]
[1730779200541,6.2574,159.81,159.77,12.09983669]
[1730779201844,18.35723669,159.81,159.76,12.09983669]
[1730779202048,6.257,159.82,159.78,12.09983669]
[1730779202244,6.257,159.82,159.79,12.09983669]
[1730779202764,76.428,159.85,159.81,12.09983669]
[1730779202765,6.428,159.85,159.81,12.09983669]
[1730779202972,6.428,159.85,159.8,12.09983669]
[1730779203158,18.52783669,159.85,159.79,12.09983669]
[1730779203661,18.52783669,159.85,159.8,12.09983669]
[1730779203850,12.09983669,159.85,159.8,12.09983669]
[1730779204057,18.35573669,159.85,159.8,12.09983669]
[1730779204552,6.2559,159.85,159.81,12.09983669]
[1730779205071,18.35573669,159.85,159.8,12.09983669]
[1730779205553,18.66492419,159.87,159.82,12.09983669]
[1730779207869,12.09983669,159.86,159.81,12.09983669]
[1730779208259,6.5650875,159.87,159.83,12.09983669]
[1730779209150,6.5650875,159.87,159.82,12.09983669]
[1730779210455,18.66492419,159.87,159.82,12.09983669]
[1730779210655,12.09983669,159.86,159.81,43.28593669]
[1730779210977,18.66492419,159.87,159.82,12.09983669]
[1730779211188,12.09983669,159.86,159.81,27.64243669]
[1730779211478,18.66492419,159.87,159.82,12.09983669]
[1730779215078,6.5646875,159.87,159.83,12.09983669]
[1730779215282,6.5646875,159.87,159.84,12.09983669]
[1730779215580,6.5646875,159.87,159.83,12.09983669]
[1730779216371,18.66452419,159.87,159.82,12.09983669]
[1730779216763,12.09983669,159.86,159.81,27.64243669]
[1730779219086,6.2558,159.85,159.81,27.64243669]
[1730779221480,6.2554,159.86,159.82,12.09983669]
[1730779223068,18.35523669,159.86,159.81,27.64243669]
[1730779225175,12.09983669,159.85,159.81,15.5426]
[1730779225367,6.2554,159.86,159.83,12.09983669]
[1730779225790,6.2554,159.86,159.82,12.09983669]
[1730779225984,18.35523669,159.86,159.81,27.64243669]
[1730779226311,6.2554,159.86,159.82,12.09983669]
[1730779228583,18.35523669,159.86,159.81,27.64243669]
[1730779228785,12.09983669,159.85,159.81,15.5426]
[1730779228987,12.09983669,159.84,159.79,12.09983669]
[1730779229291,12.09983669,159.85,159.8,12.09983669]
[1730779229466,18.35523669,159.86,159.81,12.09983669]
[1730779230682,12.09983669,159.85,159.8,12.09983669]
[1730779231782,6.2562,159.84,159.8,12.09983669]
[1730779232696,6.2562,159.84,159.81,12.09983669]
[1730779232880,6.2558,159.85,159.81,12.09983669]
[1730779233816,18.35563669,159.85,159.8,12.09983669]
[1730779238602,12.09983669,159.84,159.79,18.35773669]
[1730779239181,12.09983669,159.84,159.79,12.09983669]
[1730779240102,6.2566,159.83,159.79,12.09983669]
[1730779241102,6.2566,159.83,159.78,12.09983669]
[1730779242604,12.09983669,159.79,159.71,30.30552943]
[1730779242808,12.09983669,159.76,159.71,30.30552943]
[1730779243509,18.35953669,159.75,159.71,18.20569274]
[1730779243688,18.35953669,159.75,159.71,16.0718]
[1730779243887,6.2597,159.75,159.71,16.0718]
[1730779244088,6.2597,159.75,159.71,28.17163669]
[1730779244284,18.35803669,159.79,159.73,12.09983669]
[1730779244505,6.2582,159.79,159.74,12.09983669]
[1730779245103,18.35803669,159.79,159.73,12.09983669]
[1730779245824,12.09983669,159.79,159.74,12.09983669]
[1730779246029,18.35803669,159.79,159.74,12.09983669]
[1730779246619,6.2582,159.79,159.75,12.09983669]
[1730779246925,6.2578,159.8,159.76,12.09983669]
[1730779247217,6.2578,159.8,159.75,12.09983669]
[1730779247394,12.09983669,159.82,159.76,12.09983669]
[1730779247597,12.09983669,159.83,159.78,12.09983669]
[1730779247918,92.7004,159.86,159.77,12.09983669]
[1730779247919,12.09983669,159.82,159.77,12.09983669]
[1730779248514,6.2574,159.81,159.77,12.09983669]
[1730779249311,12.09983669,159.83,159.77,18.35873669]
[1730779249992,12.09983669,159.84,159.79,12.09983669]
[1730779250617,6.2566,159.83,159.79,18.35793669]
[1730779250920,6.2566,159.83,159.8,12.09983669]
[1730779252297,6.2562,159.84,159.8,12.09983669]
[1730779252828,18.35603669,159.84,159.79,12.09983669]
[1730779255925,12.09983669,159.85,159.8,12.09983669]
[1730779256224,12.09983669,159.85,159.79,12.09983669]
[1730779257112,12.09983669,159.85,159.8,12.09983669]
[1730779257728,12.09983669,159.85,159.79,12.09983669]
[1730779257913,12.09983669,159.85,159.8,12.09983669]
[1730779258227,6.2562,159.84,159.8,12.09983669]
[1730779260714,6.5648875,159.87,159.82,12.09983669]
[1730779260914,0.3096875,159.87,159.84,12.09983669]
[1730779261225,6.5648875,159.87,159.82,27.63173669]
[1730779261731,6.5648875,159.87,159.83,12.09983669]
[1730779262223,6.5648875,159.87,159.83,18.35643669]
[1730779263910,18.66472419,159.87,159.83,6.2566]
[1730779264113,6.5648875,159.87,159.83,18.35643669]
[1730779264527,0.3096875,159.87,159.84,12.09983669]
[1730779264706,0.3096875,159.87,159.85,12.09983669]
[1730779266228,6.5646875,159.87,159.83,33.99803669]
[1730779266730,6.5646875,159.87,159.83,27.74143669]
[1730779268021,6.5646875,159.87,159.83,12.09983669]
[1730779270837,18.66452419,159.87,159.82,27.63173669]
[1730779271129,12.09983669,159.85,159.79,12.09983669]
[1730779271532,12.09983669,159.85,159.8,12.09983669]
[1730779271840,12.09983669,159.85,159.79,12.09983669]
[1730779273136,6.2562,159.84,159.8,12.09983669]
[1730779273717,6.2562,159.84,159.81,12.09983669]
[1730779274624,6.38089,159.86,159.81,12.09983669]
[1730779275324,6.2554,159.86,159.81,12.09983669]
[1730779275827,18.35523669,159.86,159.81,12.09983669]
[1730779276734,12.09983669,159.84,159.78,27.43943669]
[1730779276920,12.09983669,159.83,159.78,15.3396]
[1730779277421,32.35081669,159.85,159.79,12.09983669]
[1730779278853,6.2562,159.84,159.79,12.09983669]
[1730779280234,18.35603669,159.84,159.79,12.09983669]
[1730779281739,18.35683669,159.82,159.78,15.3396]
[1730779281943,18.35683669,159.82,159.74,28.16613669]
[1730779281944,12.09983669,159.79,159.74,28.16613669]
[1730779282152,70.12549,159.8,159.71,12.09983669]
[1730779282328,12.09983669,159.75,159.7,30.30016305]
[1730779282643,0.12549,159.77,159.71,12.09983669]
[1730779282839,12.22532669,159.77,159.71,12.09983669]
[1730779283239,12.35081669,159.77,159.71,12.09983669]
[1730779283545,12.09983669,159.78,159.72,12.09983669]
[1730779284041,12.09983669,159.8,159.71,21.9143]
[1730779284245,6.2578,159.8,159.75,12.09983669]
[1730779284555,6.2575,159.81,159.76,12.09983669]
[1730779284754,6.2571,159.82,159.73,0.12549]
[1730779284933,6.2571,159.82,159.79,12.09983669]
[1730779285546,6.2571,159.82,159.78,12.09983669]
[1730779288039,6.2571,159.82,159.77,33.46933669]
[1730779288347,12.09983669,159.81,159.76,12.09983669]
[1730779289428,6.2578,159.8,159.76,12.09983669]
[1730779290341,12.09983669,159.79,159.74,12.09983669]
[1730779290733,18.35763669,159.8,159.75,12.09983669]
[1730779290931,6.2578,159.8,159.75,12.09983669]
[1730779293868,6.2578,159.8,159.76,12.09983669]
[1730779294030,6.2578,159.8,159.75,12.09983669]
[1730779294230,12.09983669,159.8,159.75,12.09983669]
[1730779294847,12.09983669,159.81,159.76,12.09983669]
[1730779295250,6.2578,159.8,159.76,12.09983669]
[1730779295556,6.2578,159.8,159.77,12.09983669]
[1730779295857,6.2578,159.8,159.76,12.09983669]
[1730779296652,12.35081669,159.82,159.76,12.09983669]
[1730779296864,18.35723669,159.81,159.76,12.09983669]
[1730779297744,6.2574,159.81,159.77,12.09983669]
[1730779297942,6.2574,159.81,159.78,12.09983669]
[1730779298575,18.28223669,159.85,159.79,12.09983669]
[1730779298774,6.2562,159.84,159.79,12.09983669]
[1730779299254,24.53813669,159.85,159.79,27.74493669]
[1730779299757,24.53813669,159.85,159.79,12.09983669]
[1730779301153,18.28223669,159.85,159.79,12.09983669]
[1730779301461,24.53823669,159.85,159.8,12.09983669]
[1730779301668,24.53823669,159.85,159.79,34.00333669]
[1730779302344,18.35583669,159.85,159.8,12.09983669]
[1730779302544,6.256,159.85,159.8,12.09983669]
[1730779303366,12.09983669,159.85,159.8,12.09983669]
[1730779304469,6.2562,159.84,159.8,12.09983669]
[1730779305368,6.2562,159.84,159.79,34.00333669]
[1730779308073,6.2562,159.84,159.76,31.2956]
[1730779308074,6.2562,159.84,159.78,12.09983669]
[1730779308263,12.09983669,159.83,159.78,12.09983669]
[1730779309073,12.09983669,159.82,159.77,12.09983669]
[1730779309370,12.09983669,159.81,159.76,27.74823669]
[1730779309668,12.09983669,159.82,159.77,12.09983669]
[1730779310274,6.2571,159.82,159.79,12.09983669]
[1730779310444,6.2564,159.84,159.79,12.09983669]
[1730779310647,6.256,159.85,159.8,12.09983669]
[1730779311460,18.35583669,159.85,159.8,12.09983669]
[1730779311852,18.35583669,159.85,159.79,28.37353669]
[1730779312053,18.35583669,159.85,159.79,34.63153669]
[1730779312253,12.09983669,159.84,159.79,34.63153669]
[1730779313463,6.2563,159.84,159.79,34.63153669]
[1730779314252,12.09983669,159.86,159.8,12.09983669]
[1730779314459,18.35523669,159.86,159.8,12.09983669]
[1730779319278,12.09983669,159.85,159.79,34.63143669]
[1730779319460,6.2562,159.84,159.79,34.63143669]
[1730779319980,6.2562,159.84,159.79,28.37353669]
[1730779320961,6.2562,159.84,159.8,12.09983669]
[1730779322583,6.2562,159.84,159.79,34.63153669]
[1730779323175,18.35523669,159.86,159.8,12.09983669]
[1730779323379,12.09983669,159.85,159.8,12.09983669]
[1730779323584,12.09983669,159.85,159.8,18.35743669]
[1730779323956,12.09983669,159.85,159.8,12.09983669]
[1730779324582,12.09983669,159.85,159.79,34.63163669]
[1730779324782,12.09983669,159.83,159.79,16.2737]
[1730779324984,12.09983669,159.83,159.77,34.00613669]
[1730779325282,12.09983669,159.81,159.75,27.69933669]
[1730779326383,12.09983669,159.81,159.76,12.09983669]
[1730779327069,18.40963669,159.84,159.78,12.09983669]
[1730779327382,18.35643669,159.83,159.78,12.09983669]
[1730779327569,18.35643669,159.83,159.77,12.09983669]
[1730779330475,18.35643669,159.83,159.8,12.09983669]
[1730779330476,6.2566,159.83,159.8,12.09983669]
[1730779330874,6.2566,159.83,159.79,12.09983669]
[1730779332764,12.09983669,159.85,159.79,12.09983669]
[1730779333997,6.2562,159.84,159.79,12.09983669]
[1730779334388,6.5648875,159.87,159.82,12.09983669]
[1730779334690,18.66472419,159.87,159.82,12.09983669]
[1730779335290,6.5648875,159.87,159.82,12.09983669]
[1730779336096,18.66472419,159.87,159.82,12.09983669]
[1730779336294,6.5648875,159.87,159.82,12.09983669]
[1730779337385,18.66472419,159.87,159.82,12.09983669]
[1730779337602,18.66472419,159.87,159.81,12.09983669]
[1730779338598,12.09983669,159.86,159.81,12.09983669]
[1730779338794,6.2558,159.85,159.81,12.09983669]
[1730779338994,12.09983669,159.82,159.76,28.34223109]
[1730779339202,0.25098,159.84,159.74,12.09983669]
[1730779339203,12.09983669,159.79,159.74,12.09983669]
[1730779339511,12.09983669,159.78,159.73,12.09983669]
[1730779339684,12.09983669,159.78,159.72,27.54603669]
[1730779340701,6.2589,159.77,159.72,27.54603669]
[1730779342114,12.09983669,159.76,159.72,15.4462]
[1730779343179,18.35873669,159.77,159.72,15.4462]
[1730779343593,18.35873669,159.77,159.72,27.54603669]
[1730779343808,12.09983669,159.75,159.69,12.09983669]
[1730779343977,12.09983669,159.71,159.67,3.51821751]
[1730779344182,70.12549,159.75,159.66,5.85253529]
[1730779344183,12.09983669,159.69,159.66,5.85253529]
[1730779344385,12.09983669,159.7,159.65,2.19795035]
[1730779344683,12.09983669,159.7,159.65,12.09983669]
[1730779345110,12.09983669,159.71,159.65,12.09983669]
[1730779345407,12.09983669,159.71,159.6,18.86901399]
[1730779345408,18.86901399,159.66,159.6,18.86901399]
[1730779345594,18.86901399,159.65,159.6,18.86901399]
[1730779345900,18.86901399,159.66,159.6,25.13441399]
[1730779346608,18.86901399,159.65,159.6,25.13441399]
[1730779347689,25.13251399,159.66,159.6,25.13441399]
[1730779349306,18.86901399,159.65,159.6,25.13441399]
[1730779350192,18.86901399,159.66,159.6,25.13441399]
[1730779350394,6.2629,159.67,159.62,18.86901399]
[1730779350907,6.2629,159.67,159.63,18.86901399]
[1730779351294,6.2629,159.67,159.62,18.86901399]
[1730779351705,25.13151399,159.68,159.63,18.86901399]
[1730779352003,18.86901399,159.69,159.64,18.86901399]
[1730779352188,18.86901399,159.67,159.62,40.79591399]
[1730779353994,25.13221399,159.67,159.61,18.86901399]
[1730779354989,18.86901399,159.65,159.6,25.13461399]
[1730779355303,18.86901399,159.65,159.6,18.86901399]
[1730779355506,18.86901399,159.65,159.59,6.5756875]
[1730779355507,18.86901399,159.65,159.59,25.44470149]
[1730779355906,18.86901399,159.65,159.6,18.86901399]
[1730779356792,25.13281399,159.65,159.59,25.44470149]
[1730779357688,25.13281399,159.65,159.6,18.86901399]
[1730779358902,6.2638,159.65,159.61,18.86901399]
[1730779360404,18.86901399,159.68,159.63,18.86901399]
[1730779361012,25.13111399,159.69,159.64,18.86901399]
[1730779361211,6.2621,159.69,159.65,18.86901399]
[1730779361429,6.2621,159.69,159.64,18.86901399]
[1730779361607,25.13111399,159.69,159.64,18.86901399]
[1730779362798,25.13111399,159.69,159.63,18.86901399]
[1730779363003,25.13111399,159.69,159.64,18.86901399]
[1730779363413,25.13111399,159.69,159.63,18.86901399]
[1730779364003,25.13181399,159.68,159.63,18.86901399]
[1730779365009,18.86901399,159.66,159.61,18.86901399]
[1730779365207,18.86901399,159.65,159.6,18.86901399]
[1730779365704,18.86901399,159.65,159.6,25.13441399]
[1730779365903,18.86901399,159.66,159.6,25.13441399]
[1730779367227,25.13221399,159.67,159.62,18.86901399]
[1730779367531,12.07201135,159.68,159.62,12.07201135]
[1730779368215,12.07201135,159.67,159.62,12.07201135]
[1730779368815,12.07201135,159.68,159.63,12.07201135]
[1730779369002,6.2629,159.67,159.63,12.07201135]
[1730779369518,6.2629,159.67,159.62,12.07201135]
[1730779372021,6.2629,159.67,159.61,6.2652]
[1730779372022,6.2629,159.67,159.63,12.07201135]
[1730779372427,12.07201135,159.68,159.63,12.07201135]
[1730779372735,6.2621,159.69,159.64,12.07201135]
[1730779373148,18.33411135,159.69,159.64,12.07201135]
[1730779373514,12.80892747,159.71,159.66,12.07201135]
[1730779373831,6.261,159.72,159.67,12.07201135]
[1730779374038,6.261,159.72,159.67,18.33481135]
[1730779374537,18.33301135,159.72,159.67,12.07201135]
[1730779374915,18.33301135,159.72,159.66,18.33521135]
[1730779376456,12.07201135,159.71,159.66,12.07201135]
[1730779376627,12.07201135,159.7,159.65,15.6585]
[1730779377533,6.2617,159.7,159.66,18.85837447]
[1730779378830,6.2617,159.7,159.65,18.85837447]
[1730779379931,18.85837447,159.72,159.66,18.85837447]
[1730779380142,31.73427447,159.74,159.68,18.85837447]
[1730779380325,12.8759,159.74,159.7,18.85837447]
[1730779380528,31.73427447,159.74,159.69,18.85837447]
[1730779380844,12.8759,159.74,159.7,18.85837447]
[1730779381226,12.8759,159.74,159.69,18.85837447]
[1730779381822,6.2589,159.77,159.73,18.85837447]
[1730779382024,6.2589,159.77,159.72,18.85837447]
[1730779382322,25.11727447,159.77,159.72,18.85837447]
[1730779383729,6.2589,159.77,159.72,18.85837447]
[1730779384316,6.2589,159.77,159.73,18.85837447]
[1730779386425,6.2586,159.78,159.74,18.85837447]
[1730779387336,6.2582,159.79,159.75,18.85837447]
[1730779388141,6.2582,159.79,159.74,18.85837447]
[1730779388359,25.11657447,159.79,159.74,18.85837447]
[1730779389821,6.2582,159.79,159.74,18.85837447]
[1730779390024,6.2582,159.79,159.75,18.85837447]
[1730779390428,6.2578,159.8,159.76,18.85837447]
[1730779391151,6.2578,159.8,159.75,25.11807447]
[1730779391552,6.2578,159.8,159.75,18.85837447]
[1730779392241,6.257,159.82,159.77,18.85837447]
[1730779392445,6.2566,159.84,159.79,18.85837447]
[1730779392751,25.11497447,159.84,159.78,18.85837447]
[1730779392955,6.2566,159.84,159.79,18.85837447]
[1730779393248,6.2558,159.85,159.81,18.85837447]
[1730779393429,25.42346197,159.87,159.81,18.85837447]
[1730779394534,6.5650875,159.87,159.82,18.85837447]
[1730779395048,25.42346197,159.87,159.81,18.85837447]
[1730779395225,18.85837447,159.86,159.8,18.85837447]
[1730779395630,18.85837447,159.85,159.79,34.50327447]
[1730779396666,6.2562,159.84,159.79,34.50327447]
[1730779398755,6.2562,159.84,159.8,18.85837447]
[1730779401455,6.2558,159.85,159.8,18.85837447]
[1730779402253,6.2558,159.85,159.81,18.85837447]
[1730779403474,18.30052638,159.85,159.8,12.04472638]
[1730779404872,6.2558,159.85,159.81,12.04472638]
[1730779405768,18.30052638,159.85,159.8,12.04472638]
[1730779407986,12.04472638,159.84,159.79,12.04472638]
[1730779408159,12.04472638,159.83,159.77,12.04472638]
[1730779408361,12.04472638,159.82,159.76,12.04472638]
[1730779410783,18.30212638,159.81,159.75,27.30732638]
[1730779411589,12.04472638,159.8,159.75,27.30732638]
[1730779411759,12.04472638,159.79,159.74,27.69422638]
[1730779412072,12.04472638,159.79,159.74,12.04472638]
[1730779412985,6.2586,159.78,159.75,12.04472638]
[1730779413191,6.2574,159.81,159.77,12.04472638]
[1730779414465,6.2574,159.81,159.76,12.04472638]
[1730779414663,18.30212638,159.81,159.76,12.04472638]